bitfinex/quotes_SOLUSD_20250604
["timestamp","ask_amount","ask_price","bid_price","bid_amount"]
[1749003564909,12.98589836,157.14,157.06,0.8469]
[1749003565112,12.84373679,157.08,157.06,10.1]
[1749003565319,12.84373679,157.09,157.07,38.96]
[1749003565536,12.84373679,157.1,157.07,38.96]
[1749003565737,12.84373679,157.11,157.07,38.96]
[1749003566040,12.84373679,157.1,157.07,38.96]
[1749003567204,19.23927522,157.1,157.08,38.98]
[1749003568843,19.23927522,157.11,157.08,38.98]
[1749003569219,26.0,157.16,157.09,19.23927522]
[1749003569528,19.23927522,157.13,157.08,58.21927522]
[1749003569730,19.23927522,157.11,157.08,38.98]
[1749003570037,19.23927522,157.12,157.08,38.98]
[1749003576741,19.23927522,157.12,157.09,10.12]
[1749003579518,19.23927522,157.12,157.09,61.42]
[1749003580247,19.23927522,157.13,157.09,61.42]
[1749003580450,26.0,157.14,157.09,61.42]
[1749003580451,19.23927522,157.14,157.09,80.65927522]
[1749003580639,19.23927522,157.15,157.1,19.23927522]
[1749003580836,19.23927522,157.14,157.1,19.23927522]
[1749003581263,7.7205,157.17,157.1,19.23927522]
[1749003581646,19.23927522,157.14,157.1,19.23927522]
[1749003581948,19.23927522,157.15,157.11,19.23927522]
[1749003582150,19.23927522,157.16,157.12,19.23927522]
[1749003582356,19.23927522,157.16,157.13,38.96]
[1749003582555,19.23927522,157.16,157.14,10.12]
[1749003587163,12.81617853,157.16,157.14,10.12]
[1749003588436,12.81617853,157.16,157.14,61.42]
[1749003595137,1.5785,157.17,157.14,61.42]
[1749003595138,12.81617853,157.15,157.14,61.42]
[1749003595351,12.81617853,157.15,157.14,100.38]
[1749003595741,12.81617853,157.15,157.14,61.42]
[1749003595970,19.27236324,157.15,157.14,51.3]
[1749003596160,19.27236324,157.15,157.14,90.24]
[1749003596363,22.91252545,157.15,157.14,90.24]
[1749003596568,19.27236324,157.15,157.14,90.24]
[1749003596748,22.91252545,157.15,157.14,90.24]
[1749003596950,22.91252545,157.15,157.1,10.12]
[1749003596951,26.0,157.12,157.1,10.12]
[1749003597150,26.0,157.12,157.11,38.94]
[1749003597365,38.81617853,157.12,157.11,38.94]
[1749003598385,38.81617853,157.12,157.11,38.96]
[1749003600251,26.0,157.15,157.11,38.96]
[1749003600486,3.64121657,157.19,157.14,12.81617853]
[1749003600782,12.81617853,157.19,157.15,61.87617853]
[1749003600951,12.81617853,157.19,157.16,10.1]
[1749003602363,12.81617853,157.2,157.16,22.91617853]
[1749003602563,14.34697853,157.21,157.16,22.91617853]
[1749003603074,12.81617853,157.2,157.16,22.91617853]
[1749003603376,12.81617853,157.2,157.16,10.1]
[1749003603781,12.81617853,157.2,157.16,22.91617853]
[1749003604976,12.81617853,157.2,157.16,10.1]
[1749003605797,12.81617853,157.19,157.16,10.1]
[1749003606154,12.81617853,157.19,157.16,61.4]
[1749003607581,12.81617853,157.2,157.16,61.4]
[1749003616684,12.81617853,157.2,157.16,74.21617853]
[1749003617494,5.17317744,157.25,157.19,12.81617853]
[1749003617792,14.34997853,157.25,157.2,51.75617853]
[1749003617967,12.81617853,157.24,157.21,10.1]
[1749003618466,12.81617853,157.23,157.21,10.1]
[1749003618687,12.81617853,157.22,157.21,10.1]
[1749003618891,1.6664,157.2,157.1,55.06216157]
[1749003619202,12.81617853,157.12,157.11,10.1]
[1749003619371,12.81617853,157.12,157.11,49.04]
[1749003619689,12.81617853,157.13,157.11,49.04]
[1749003619892,12.81617853,157.13,157.11,10.1]
[1749003620066,0.14216157,157.16,157.12,38.94]
[1749003620267,26.0,157.17,157.12,38.94]
[1749003620494,12.81617853,157.15,157.12,38.94]
[1749003621199,29.64053398,157.19,157.12,38.94]
[1749003621200,12.81617853,157.13,157.12,38.94]
[1749003621876,12.81617853,157.13,157.11,10.1]
[1749003622184,12.81617853,157.12,157.11,10.1]
[1749003622567,12.81617853,157.12,157.11,49.04]
[1749003623968,12.81617853,157.12,157.11,10.1]
[1749003624299,12.81617853,157.12,157.11,49.04]
[1749003626985,12.81617853,157.12,157.11,10.1]
[1749003627292,12.81617853,157.12,157.11,49.04]
[1749003628572,12.9583401,157.12,157.11,10.1]
[1749003628895,25.77451863,157.12,157.07,10.1]
[1749003629078,12.81617853,157.08,157.07,10.1]
[1749003629279,12.81617853,157.08,157.07,49.04]
[1749003630398,26.0,157.11,157.07,49.04]
[1749003630706,26.0,157.13,157.07,49.04]
[1749003630916,12.81617853,157.13,157.08,12.81617853]
[1749003631369,12.81617853,157.14,157.09,12.81617853]
[1749003631569,12.81617853,157.15,157.1,12.81617853]
[1749003631905,12.81617853,157.15,157.11,51.77617853]
[1749003632073,12.81617853,157.16,157.12,10.1]
[1749003632476,12.81617853,157.15,157.12,10.1]
[1749003632690,12.81617853,157.16,157.12,22.91617853]
[1749003632886,12.81617853,157.14,157.12,10.1]
[1749003633372,26.0,157.17,157.12,10.1]
[1749003633373,12.81617853,157.13,157.12,10.1]
[1749003633992,12.81617853,157.14,157.12,10.1]
[1749003634197,12.81617853,157.13,157.12,10.1]
[1749003635005,12.81617853,157.13,157.12,49.06]
[1749003636788,12.81617853,157.13,157.12,10.1]
[1749003636988,12.81617853,157.13,157.12,49.04]
[1749003637594,12.81617853,157.14,157.12,49.04]
[1749003638094,12.81617853,157.15,157.12,49.04]
[1749003638413,38.81617853,157.15,157.12,49.04]
[1749003638799,12.81617853,157.15,157.12,49.04]
[1749003642783,12.81617853,157.14,157.12,49.04]
[1749003644630,12.81617853,157.14,157.12,100.34]
[1749003647092,12.81617853,157.15,157.12,100.34]
[1749003651718,12.81617853,157.14,157.12,100.34]
[1749003653309,12.81617853,157.13,157.12,100.34]
[1749003656429,38.81617853,157.15,157.12,100.34]
[1749003656643,12.81617853,157.15,157.12,100.34]
[1749003656798,3.64208009,157.2,157.14,12.81617853]
[1749003657002,12.81617853,157.21,157.16,12.81617853]
[1749003657199,38.81617853,157.21,157.17,10.1]
[1749003657507,38.81617853,157.21,157.18,38.94]
[1749003657902,12.81617853,157.19,157.18,38.94]
[1749003658101,12.9583401,157.19,157.18,38.94]
[1749003660131,26.14216157,157.18,157.13,10.1]
[1749003660330,27.5077,157.17,157.14,38.94]
[1749003661029,27.5077,157.17,157.15,38.94]
[1749003661330,6.37176157,157.18,157.15,38.94]
[1749003661331,26.0,157.18,157.15,38.94]
[1749003661509,12.81617853,157.16,157.15,38.94]
[1749003662314,12.81617853,157.16,157.13,10.1]
[1749003662541,12.9583401,157.2,157.13,10.1]
[1749003662542,12.81617853,157.14,157.13,10.1]
[1749003662712,12.81617853,157.14,157.13,49.04]
[1749003663658,12.81617853,157.14,157.13,10.1]
[1749003663825,12.81617853,157.14,157.13,49.04]
[1749003665316,12.9583401,157.14,157.04,54.94]
[1749003665511,12.81617853,157.1,157.05,61.85617853]
[1749003665717,0.14216157,157.14,157.06,12.81617853]
[1749003665718,12.81617853,157.11,157.06,12.81617853]
[1749003666538,12.81617853,157.1,157.07,38.94]
[1749003667732,12.81617853,157.13,157.08,12.81617853]
[1749003668731,12.81617853,157.12,157.07,51.75617853]
[1749003669649,12.81617853,157.12,157.08,10.1]
[1749003670225,12.81617853,157.12,157.09,38.94]
[1749003670855,12.81617853,157.11,157.09,38.94]
[1749003672260,12.81617853,157.1,157.09,38.94]
[1749003672444,12.81617853,157.11,157.09,38.94]
[1749003673148,12.81617853,157.11,157.1,38.94]
[1749003675533,12.81617853,157.11,157.08,61.4]
[1749003675735,12.81617853,157.1,157.09,38.94]
[1749003676037,12.81617853,157.1,157.08,61.4]
[1749003676237,0.14216157,157.14,157.08,61.4]
[1749003676238,12.81617853,157.09,157.08,61.4]
[1749003676438,12.81617853,157.09,157.08,100.34]
[1749003676849,12.81617853,157.09,157.08,61.4]
[1749003677054,12.81617853,157.09,157.08,10.1]
[1749003677359,14.4952401,157.09,157.08,10.1]
[1749003677567,18.14748604,157.09,157.04,65.04]
[1749003677863,12.81617853,157.05,157.04,65.04]
[1749003678038,3.79402759,157.08,157.04,103.98]
[1749003678239,12.81617853,157.05,157.04,103.98]
[1749003679635,12.81617853,157.05,157.04,65.04]
[1749003679839,12.81617853,157.06,157.04,103.98]
[1749003680569,12.81617853,157.05,157.04,103.98]
[1749003681870,12.81617853,157.08,157.04,103.98]
[1749003682387,12.81617853,157.11,157.06,12.81617853]
[1749003682546,12.81617853,157.12,157.07,12.81617853]
[1749003682749,12.81617853,157.12,157.08,38.96]
[1749003682963,12.81617853,157.11,157.09,10.1]
[1749003684980,12.81617853,157.1,157.09,10.1]
[1749003686540,12.81617853,157.12,157.09,10.1]
[1749003686970,12.81617853,157.11,157.09,10.1]
[1749003687455,12.81617853,157.1,157.09,10.1]
[1749003688258,12.81617853,157.11,157.09,10.1]
[1749003688453,12.81617853,157.1,157.09,10.1]
[1749003690965,12.81617853,157.11,157.09,10.1]
[1749003695766,3.64253198,157.17,157.1,12.81617853]
[1749003695965,3.64253198,157.17,157.09,61.4]
[1749003695966,12.81617853,157.15,157.11,12.81617853]
[1749003696180,12.81617853,157.15,157.12,38.96]
[1749003696665,12.81617853,157.13,157.12,38.96]
[1749003697351,3.78478119,157.17,157.12,38.96]
[1749003697352,12.81617853,157.14,157.12,38.96]
[1749003697656,12.81617853,157.15,157.12,38.96]
[1749003698057,12.81617853,157.14,157.12,38.96]
[1749003700761,12.81617853,157.14,157.12,90.26]
[1749003701295,12.81617853,157.13,157.12,90.26]
[1749003701468,12.81617853,157.13,157.12,38.96]
[1749003709818,12.81617853,157.13,157.12,38.94]
[1749003710330,12.81617853,157.13,157.09,61.4]
[1749003710498,12.81617853,157.1,157.09,61.4]
[1749003711130,12.81617853,157.1,157.09,100.34]
[1749003711305,12.81617853,157.1,157.09,10.1]
[1749003711508,12.81617853,157.1,157.09,49.04]
[1749003712214,12.81617853,157.1,157.09,10.1]
[1749003712419,12.81617853,157.1,157.09,49.04]
[1749003714421,5.16211899,157.12,157.09,49.04]
[1749003714422,16.46539752,157.12,157.09,49.04]
[1749003714611,12.81617853,157.12,157.09,49.04]
[1749003714929,29.64900142,157.13,157.09,49.04]
[1749003714930,3.64900142,157.13,157.09,61.85617853]
[1749003715219,16.46517995,157.15,157.1,12.81617853]
[1749003715426,3.64900142,157.16,157.12,12.81617853]
[1749003715733,3.64900142,157.19,157.15,12.81617853]
[1749003716037,12.81617853,157.19,157.16,49.04]
[1749003716223,12.81617853,157.18,157.16,49.04]
[1749003717901,5.31082111,157.21,157.16,49.04]
[1749003718095,12.81617853,157.17,157.16,10.1]
[1749003718299,12.81617853,157.17,157.12,10.1]
[1749003718300,1.6243,157.15,157.12,10.1]
[1749003718516,1.6243,157.15,157.11,10.1]
[1749003718517,12.81617853,157.13,157.11,10.1]
[1749003718720,1.6243,157.15,157.1,10.1]
[1749003718721,12.81617853,157.12,157.1,10.1]
[1749003719028,12.81617853,157.11,157.1,10.1]
[1749003719404,12.81617853,157.11,157.1,49.04]
[1749003721300,0.14216157,157.1,157.06,10.1]
[1749003721603,12.81617853,157.07,157.06,10.1]
[1749003721828,12.81617853,157.07,157.06,49.04]
[1749003722296,12.81617853,157.07,157.06,10.1]
[1749003722498,12.81617853,157.07,157.06,49.04]
[1749003722934,12.81617853,157.07,157.06,10.1]
[1749003723304,12.81617853,157.07,157.06,49.04]
[1749003724530,12.81617853,157.07,157.06,10.1]
[1749003724703,12.81617853,157.07,157.06,49.04]
[1749003725714,3.64593375,157.11,157.06,49.04]
[1749003725929,12.81617853,157.1,157.06,49.04]
[1749003726239,5.21563375,157.13,157.06,61.85617853]
[1749003726539,12.81617853,157.13,157.08,12.81617853]
[1749003727024,3.64593375,157.16,157.09,12.81617853]
[1749003727334,12.81617853,157.13,157.1,38.96]
[1749003727514,12.81617853,157.13,157.11,10.1]
[1749003730130,12.81617853,157.14,157.11,10.1]
[1749003730329,12.81617853,157.15,157.11,10.1]
[1749003731939,16.46128612,157.19,157.14,12.81617853]
[1749003732239,12.81617853,157.18,157.15,38.94]
[1749003732539,34.29756157,157.21,157.11,10.1]
[1749003732540,12.81617853,157.16,157.11,10.1]
[1749003732739,12.81617853,157.15,157.12,38.96]
[1749003732912,12.81617853,157.16,157.12,38.96]
[1749003733118,12.81617853,157.15,157.12,38.96]
[1749003733320,0.28432314,157.18,157.12,38.96]
[1749003733321,12.81617853,157.14,157.12,38.96]
[1749003733519,12.81617853,157.13,157.11,10.1]
[1749003733721,12.81617853,157.13,157.12,38.96]
[1749003734634,14.34387853,157.13,157.11,10.1]
[1749003734837,12.81617853,157.12,157.11,10.1]
[1749003735041,12.81617853,157.12,157.11,49.08]
[1749003744126,3.6447837,157.16,157.11,49.08]
[1749003744327,12.81617853,157.14,157.11,49.08]
[1749003744746,31.3044837,157.17,157.11,49.08]
[1749003744747,12.81617853,157.15,157.11,61.89617853]
[1749003745242,3.6447837,157.19,157.11,61.89617853]
[1749003745243,12.81617853,157.16,157.12,12.81617853]
[1749003745628,16.6031238,157.2,157.12,12.81617853]
[1749003745629,12.81617853,157.18,157.13,12.81617853]
[1749003745826,12.81617853,157.18,157.14,39.0]
[1749003746032,12.81617853,157.17,157.14,39.0]
[1749003749738,12.81617853,157.15,157.11,10.1]
[1749003749932,12.81617853,157.14,157.12,38.98]
[1749003750437,12.81617853,157.15,157.12,38.98]
[1749003752130,12.81617853,157.14,157.11,10.1]
[1749003752348,12.81617853,157.14,157.12,38.98]
[1749003753547,12.81617853,157.14,157.13,38.96]
[1749003754641,0.28432314,157.19,157.13,38.96]
[1749003754830,12.81617853,157.16,157.13,38.96]
[1749003755241,12.81617853,157.17,157.13,38.96]
[1749003755439,12.81617853,157.18,157.14,12.81617853]
[1749003755638,12.81617853,157.19,157.15,12.81617853]
[1749003755858,12.81617853,157.2,157.16,10.12]
[1749003756054,12.81617853,157.2,157.17,38.96]
[1749003758135,1.6412,157.25,157.19,12.81617853]
[1749003758437,12.81617853,157.24,157.19,12.81617853]
[1749003758638,1.6412,157.25,157.19,12.81617853]
[1749003758849,12.81617853,157.24,157.19,12.81617853]
[1749003759027,12.81617853,157.23,157.19,12.81617853]
[1749003759429,12.81617853,157.23,157.17,38.96]
[1749003759430,12.81617853,157.23,157.18,12.81617853]
[1749003760536,12.81617853,157.23,157.19,12.81617853]
[1749003760749,12.81617853,157.24,157.2,12.81617853]
[1749003761045,1.587,157.29,157.21,61.89617853]
[1749003761250,12.81617853,157.27,157.23,12.81617853]
[1749003761648,12.81617853,157.27,157.22,12.81617853]
[1749003762241,12.81617853,157.27,157.21,49.08]
[1749003762242,12.81617853,157.28,157.23,12.81617853]
[1749003762438,12.81617853,157.27,157.23,12.81617853]
[1749003765647,12.81617853,157.25,157.21,61.89617853]
[1749003766739,1.587,157.29,157.21,61.89617853]
[1749003767061,12.81617853,157.25,157.21,61.89617853]
[1749003767236,1.587,157.29,157.21,61.89617853]
[1749003767237,12.81617853,157.26,157.21,113.19617853]
[1749003769949,12.81617853,157.25,157.21,113.19617853]
[1749003770253,12.81617853,157.26,157.22,38.92]
[1749003770562,12.81617853,157.27,157.22,51.73617853]
[1749003770765,12.81617853,157.28,157.23,12.81617853]
[1749003770958,1.587,157.29,157.23,64.11617853]
[1749003771153,1.587,157.29,157.24,12.81617853]
[1749003771154,12.81617853,157.29,157.24,12.81617853]
[1749003771358,12.81617853,157.29,157.25,12.81617853]
[1749003771555,6.2742,157.31,157.26,10.1]
[1749003771752,12.81617853,157.29,157.27,38.94]
[1749003772872,12.81617853,157.28,157.26,10.1]
[1749003773076,12.81617853,157.27,157.26,10.1]
[1749003773286,12.81617853,157.27,157.26,49.04]
[1749003775549,12.81617853,157.27,157.26,49.02]
[1749003776250,12.81617853,157.27,157.26,10.1]
[1749003776468,12.81617853,157.27,157.26,49.02]
[1749003776673,12.81617853,157.27,157.26,10.1]
[1749003776890,12.81617853,157.27,157.26,49.02]
[1749003778068,14.44577853,157.27,157.26,49.02]
[1749003781000,0.14216157,157.26,157.22,10.1]
[1749003781298,12.81617853,157.23,157.22,61.4]
[1749003781509,12.81617853,157.23,157.22,100.32]
[1749003781995,12.81617853,157.23,157.22,61.4]
[1749003782180,12.81617853,157.23,157.22,100.32]
[1749003782894,12.81617853,157.23,157.22,10.1]
[1749003783086,1.77816157,157.22,157.18,10.08]
[1749003783276,12.9583401,157.19,157.18,10.08]
[1749003783479,19.07613357,157.18,157.14,10.08]
[1749003783791,12.81617853,157.15,157.13,10.08]
[1749003784000,12.81617853,157.14,157.12,10.08]
[1749003784188,12.81617853,157.14,157.13,38.96]
[1749003784602,12.81617853,157.18,157.13,51.77617853]
[1749003785685,12.81617853,157.17,157.13,51.77617853]
[1749003786811,12.81617853,157.17,157.12,22.89617853]
[1749003786995,12.81617853,157.16,157.13,38.98]
[1749003788013,34.0084,157.22,157.13,51.79617853]
[1749003788311,12.81617853,157.18,157.13,51.79617853]
[1749003788501,12.81617853,157.17,157.13,51.79617853]
[1749003788886,12.81617853,157.17,157.13,38.98]
[1749003789116,12.81617853,157.16,157.13,38.98]
[1749003789693,12.81617853,157.17,157.13,38.98]
[1749003790286,12.81617853,157.17,157.13,51.79617853]
[1749003790689,12.81617853,157.17,157.13,38.98]
[1749003791098,12.81617853,157.16,157.13,38.98]
[1749003792297,0.14216157,157.21,157.13,38.98]
[1749003792298,12.81617853,157.17,157.13,38.98]
[1749003792520,12.81617853,157.17,157.13,90.28]
[1749003793419,12.81617853,157.16,157.13,90.28]
[1749003793622,12.81617853,157.17,157.13,90.28]
[1749003794028,12.81617853,157.18,157.13,103.09617853]
[1749003794328,34.0084,157.22,157.16,12.81617853]
[1749003794329,12.81617853,157.21,157.16,12.81617853]
[1749003794529,1.636,157.22,157.18,12.81617853]
[1749003794732,12.81617853,157.24,157.19,12.81617853]
[1749003795499,12.81617853,157.24,157.2,12.81617853]
[1749003795895,6.3954,157.26,157.2,12.81617853]
[1749003796099,12.81617853,157.25,157.21,12.81617853]
[1749003796300,12.81617853,157.25,157.22,49.08]
[1749003796831,12.81617853,157.26,157.22,49.08]
[1749003797014,12.81617853,157.27,157.22,61.89617853]
[1749003798522,12.81617853,157.25,157.22,49.08]
[1749003800107,12.81617853,157.24,157.22,49.08]
[1749003800903,12.81617853,157.25,157.22,49.08]
[1749003804133,0.14216157,157.19,157.08,0.8469]
[1749003804310,0.14216157,157.19,157.11,10.08]
[1749003804311,25.13151043,157.16,157.11,10.08]
[1749003804513,25.13151043,157.16,157.09,10.08]
[1749003804514,25.63235706,157.12,157.09,10.08]
[1749003804734,12.9583401,157.1,157.09,10.08]
[1749003804912,12.9583401,157.1,157.06,54.9]
[1749003805117,12.81617853,157.07,157.06,54.9]
[1749003805338,12.81617853,157.07,157.06,94.26]
[1749003805637,12.81617853,157.07,157.06,94.24]
[1749003805807,12.81617853,157.07,157.06,94.26]
[1749003806430,12.81617853,157.07,157.06,39.36]
[1749003807242,19.25300032,157.07,157.05,10.08]
[1749003807437,0.14216157,157.1,157.06,39.34]
[1749003807610,19.25300032,157.07,157.06,39.34]
[1749003809639,19.25300032,157.07,157.05,10.08]
[1749003809837,19.25300032,157.06,157.05,10.08]
[1749003810043,19.25300032,157.06,157.05,49.42]
[1749003810912,19.25300032,157.06,157.05,10.08]
[1749003811113,19.25300032,157.06,157.05,49.4]
[1749003811314,21.76424882,157.11,157.05,49.4]
[1749003811524,19.25300032,157.06,157.05,49.4]
[1749003812327,0.42648471,157.1,157.05,49.4]
[1749003812526,19.25300032,157.06,157.05,49.4]
[1749003820522,19.25300032,157.06,157.05,10.08]
[1749003820726,19.25300032,157.06,157.05,49.38]
[1749003821947,64.64816221,157.06,157.05,10.08]
[1749003822136,64.64816221,157.06,157.05,49.36]
[1749003822338,64.64816221,157.06,157.05,39.28]
[1749003822654,18.933972,157.05,157.01,10.32]
[1749003822956,19.25300032,157.02,157.01,10.32]
[1749003823455,19.25300032,157.02,157.01,49.62]
[1749003823957,19.39516189,157.02,157.01,10.32]
[1749003824328,38.32913389,157.02,157.01,49.62]
[1749003824546,19.07613357,157.01,156.97,10.32]
[1749003824856,19.07613357,157.01,156.98,39.3]
[1749003826153,19.39516189,156.99,156.97,10.32]
[1749003826357,19.25300032,156.98,156.97,10.32]
[1749003826532,19.25300032,156.98,156.97,49.62]
[1749003829251,19.25300032,156.98,156.97,49.6]
[1749003830454,1.5246,157.0,156.97,49.6]
[1749003830654,19.25300032,156.99,156.97,49.6]
[1749003831261,12.84044688,157.04,156.97,49.6]
[1749003831444,12.84044688,157.0,156.97,49.6]
[1749003831635,12.84044688,156.99,156.97,49.6]
[1749003833252,19.2614199,156.99,156.97,49.6]
[1749003833450,19.2614199,156.98,156.97,10.32]
[1749003833672,19.2614199,156.98,156.97,39.3]
[1749003833881,19.2614199,156.98,156.96,65.22]
[1749003834041,19.2614199,156.97,156.96,65.22]
[1749003834356,19.2614199,156.97,156.96,104.54]
[1749003834581,19.2614199,156.97,156.96,65.22]
[1749003834865,19.2614199,156.97,156.96,104.54]
[1749003836550,19.2614199,156.97,156.96,49.64]
[1749003837449,19.2614199,156.97,156.96,49.62]
[1749003841243,19.2614199,156.97,156.96,10.32]
[1749003841439,19.2614199,156.97,156.96,49.6]
[1749003843664,19.2614199,156.97,156.87,80.98]
[1749003843665,0.14216157,156.95,156.92,10.26]
[1749003843860,19.2614199,156.93,156.87,65.24]
[1749003844046,19.2614199,156.88,156.87,65.24]
[1749003844241,19.2614199,156.88,156.87,104.52]
[1749003845163,19.2614199,156.9,156.87,104.52]
[1749003845858,19.2614199,156.89,156.87,104.52]
[1749003846055,19.2614199,156.88,156.87,104.52]
[1749003846661,19.2614199,156.88,156.87,65.24]
[1749003847168,19.2614199,156.88,156.87,104.52]
[1749003847370,19.2614199,156.88,156.87,65.24]
[1749003847557,19.2614199,156.88,156.87,49.54]
[1749003847755,19.2614199,156.88,156.87,10.26]
[1749003847960,64.66500137,156.88,156.83,10.26]
[1749003848152,19.2614199,156.87,156.84,39.32]
[1749003848345,19.2614199,156.87,156.83,10.26]
[1749003848346,19.2614199,156.85,156.83,10.26]
[1749003848564,19.2614199,156.87,156.83,10.26]
[1749003848758,19.2614199,156.87,156.84,39.32]
[1749003848964,19.2614199,156.87,156.85,39.32]
[1749003849169,18.79181043,156.86,156.83,10.26]
[1749003849362,26.0,156.85,156.84,39.34]
[1749003849765,45.2614199,156.85,156.84,39.34]
[1749003850758,45.2614199,156.85,156.83,10.26]
[1749003850960,19.2614199,156.84,156.83,10.26]
[1749003851148,19.2614199,156.84,156.83,49.6]
[1749003853378,19.2614199,156.84,156.75,26.0]
[1749003853379,18.79181043,156.83,156.79,39.4]
[1749003853678,19.2614199,156.8,156.79,39.4]
[1749003855289,12.87744015,156.8,156.79,39.4]
[1749003855457,6.5667,156.84,156.79,39.4]
[1749003855663,12.87744015,156.8,156.79,39.4]
[1749003856974,6.1947,156.88,156.79,39.4]
[1749003857172,19.30141915,156.83,156.79,58.70141915]
[1749003857378,19.30141915,156.82,156.79,39.4]
[1749003858459,19.30141915,156.83,156.79,39.4]
[1749003861068,19.30141915,156.82,156.79,39.4]
[1749003861907,27.5666,156.87,156.79,39.4]
[1749003862195,19.30141915,156.86,156.81,19.30141915]
[1749003862496,19.30141915,156.86,156.82,10.28]
[1749003862669,19.30141915,156.86,156.83,39.38]
[1749003862862,19.30141915,156.85,156.83,39.38]
[1749003863396,19.30141915,156.84,156.83,39.38]
[1749003864211,45.30141915,156.84,156.81,39.38]
[1749003865071,19.30141915,156.82,156.81,39.38]
[1749003865272,19.07613357,156.86,156.81,39.38]
[1749003865501,19.30141915,156.82,156.81,39.38]
[1749003867088,26.0,156.88,156.81,39.38]
[1749003867290,19.30141915,156.84,156.81,39.38]
[1749003867791,19.30141915,156.83,156.81,39.38]
[1749003870181,19.30141915,156.85,156.81,58.68141915]
[1749003870383,0.14216157,156.9,156.81,58.68141915]
[1749003870384,19.30141915,156.86,156.81,58.68141915]
[1749003870821,27.6021,156.91,156.82,19.30141915]
[1749003870990,27.6021,156.91,156.83,10.28]
[1749003870991,19.30141915,156.86,156.83,10.28]
[1749003872332,19.30141915,156.85,156.83,10.28]
[1749003872706,19.30141915,156.84,156.83,10.28]
[1749003873037,19.30141915,156.85,156.83,10.28]
[1749003877339,12.86513781,156.85,156.83,10.28]
[1749003879823,0.14216157,156.89,156.83,10.28]
[1749003879824,12.86513781,156.84,156.83,10.28]
[1749003880144,12.86513781,156.84,156.83,49.76]
[1749003880361,12.86513781,156.84,156.83,10.28]
[1749003880514,12.86513781,156.84,156.83,49.76]
[1749003881414,12.86513781,156.84,156.83,49.74]
[1749003881837,12.86513781,156.84,156.83,10.28]
[1749003882047,12.86513781,156.84,156.83,49.74]
[1749003882660,12.86513781,156.84,156.83,10.28]
[1749003882866,12.86513781,156.84,156.83,49.74]
[1749003883261,13.00729938,156.84,156.83,49.74]
[1749003884739,13.00729938,156.84,156.79,10.4]
[1749003884967,12.86513781,156.8,156.79,10.4]
[1749003885163,12.86513781,156.8,156.79,49.84]
[1749003886941,12.86513781,156.8,156.79,49.82]
[1749003887258,25.87243719,156.8,156.79,10.4]
[1749003887457,25.87243719,156.8,156.79,39.44]
[1749003887847,25.87243719,156.8,156.78,39.44]
[1749003888052,12.86513781,156.79,156.78,39.44]
[1749003888267,12.86513781,156.79,156.78,39.42]
[1749003893255,13.00729938,156.79,156.78,39.4]
[1749003893660,12.86513781,156.79,156.78,39.4]
[1749003894143,33.52967138,156.79,156.78,39.4]
[1749003895170,33.52967138,156.79,156.75,10.4]
[1749003895171,0.14216157,156.78,156.75,10.4]
[1749003895355,12.86513781,156.76,156.75,10.4]
[1749003895554,12.86513781,156.76,156.75,49.8]
[1749003896198,12.86513781,156.76,156.75,39.4]
[1749003896359,0.14216157,156.75,156.71,10.4]
[1749003896709,0.14216157,156.75,156.72,39.42]
[1749003897585,0.14216157,156.75,156.71,10.4]
[1749003897586,19.07613357,156.75,156.71,10.4]
[1749003897771,6.3701,156.78,156.72,39.42]
[1749003897997,12.86513781,156.73,156.72,39.42]
[1749003902877,19.07613357,156.77,156.72,39.42]
[1749003903075,12.86513781,156.73,156.72,39.42]
[1749003906013,12.86513781,156.73,156.72,39.4]